bitfinex-derivatives/quotes_ETHF0:USTF0_20241027
["timestamp","ask_amount","ask_price","bid_price","bid_amount"]
[1729998599751,3.2078,2473.1,2472.5,4.26865402]
[1729998599752,1.31191936,2472.7,2472.6,0.40489]
[1729998600858,1.31191936,2472.7,2472.6,0.83859]
[1729998603965,1.31191936,2472.7,2472.6,4.88259]
[1729998604157,1.31191936,2472.7,2472.6,0.83859]
[1729998607356,1.31191936,2472.7,2472.5,3.2078]
[1729998607554,1.31191936,2472.6,2472.5,3.2078]
[1729998607760,1.71680936,2472.6,2472.5,3.2078]
[1729998608463,1.31191936,2472.6,2472.5,3.2078]
[1729998609362,1.31191936,2472.6,2472.5,3.61271]
[1729998609759,1.72181936,2472.6,2472.5,3.61271]
[1729998611558,1.72181936,2472.6,2472.5,0.40491]
[1729998611955,1.31191936,2472.6,2472.5,0.40491]
[1729998613964,1.2359,2472.7,2472.6,0.40489]
[1729998614156,2.54781936,2472.7,2472.6,0.40489]
[1729998616267,0.4099,2472.7,2472.6,0.40489]
[1729998616475,1.72181936,2472.7,2472.6,0.40489]
[1729998617962,1.72181936,2472.7,2472.6,0.83339]
[1729998618164,1.31191936,2472.7,2472.6,0.83339]
[1729998620677,0.826,2472.8,2472.7,0.40488]
[1729998620877,2.13791936,2472.8,2472.7,0.84328]
[1729998627282,0.4101,2472.9,2472.8,0.40486]
[1729998627283,1.2361,2472.9,2472.8,0.40486]
[1729998627471,2.54801936,2472.9,2472.8,0.40486]
[1729998627775,0.826,2473.1,2472.8,1.31191936]
[1729998627976,1.2769,2473.1,2473.0,0.40483]
[1729998628474,1.2769,2473.1,2473.0,0.83043]
[1729998628670,2.58881936,2473.1,2473.0,0.83043]
[1729998629275,2.58881936,2473.1,2473.0,0.40483]
[1729998629477,3.03781936,2473.1,2473.0,0.40483]
[1729998629677,0.40483,2473.0,2472.8,0.4304]
[1729998629878,1.31191936,2472.9,2472.8,0.83525]
[1729998630068,1.76281936,2472.9,2472.8,0.40485]
[1729998633573,1.76281936,2472.9,2472.8,0.84625]
[1729998637072,1.31191936,2472.9,2472.8,0.84625]
[1729998637375,1.31191936,2472.9,2472.8,3.43344505]
[1729998638374,1.31191936,2472.9,2472.8,3.96534612]
[1729998640983,1.31191936,2472.9,2472.8,2.37259103]
[1729998641584,1.31191936,2472.9,2472.8,3.43418194]
[1729998644186,1.31191936,2472.9,2472.8,6.6419163]
[1729998644779,1.31191936,2472.9,2472.8,6.64229198]
[1729998646686,1.31191936,2472.9,2472.8,3.43449198]
[1729998646885,1.31191936,2472.9,2472.8,6.64229198]
[1729998647885,1.73291936,2473.0,2472.9,0.40484]
[1729998648081,1.73291936,2473.0,2472.9,0.84074]
[1729998656402,1.73291936,2473.0,2472.9,1.90226527]
[1729998656585,1.73291936,2473.0,2472.9,0.84074]
[1729998669400,1.31191936,2473.0,2472.9,0.84074]
[1729998669600,0.4199,2473.3,2472.9,4.4799]
[1729998669899,1.31191936,2473.3,2473.0,3.88921412]
[1729998670198,1.31191936,2473.2,2473.1,1.54411374]
[1729998670404,1.31191936,2473.2,2473.1,1.98141666]
[1729998671196,1.31191936,2473.2,2473.1,1.98141322]
[1729998671611,1.31191936,2473.2,2473.1,5.10175851]
[1729998672211,1.31191936,2473.2,2473.1,4.59543016]
[1729998673507,1.31191936,2473.2,2473.1,3.96245529]
[1729998673703,1.31191936,2473.2,2473.1,4.59536101]
[1729998674513,1.31191936,2473.2,2473.1,7.80316101]
[1729998675211,1.31191936,2473.2,2473.1,7.17025529]
[1729998675813,1.31191936,2473.2,2473.1,7.16966354]
[1729998676800,1.31191936,2473.3,2473.2,0.40479]
[1729998677006,1.31191936,2473.4,2473.3,0.84878]
[1729998677304,1.31191936,2473.4,2473.3,2.32311456]
[1729998678312,1.31191936,2473.4,2473.3,1.26168]
[1729998681817,0.4297,2473.6,2473.5,0.40475]
[1729998682113,1.31191936,2473.9,2473.8,0.4047]
[1729998682421,0.822,2474.1,2473.9,0.40467]
[1729998682720,1.31191936,2474.0,2473.9,0.40467]
[1729998683411,1.29014,2474.2,2473.6,2.34154091]
[1729998683412,1.7075,2474.2,2473.8,1.31191936]
[1729998683618,1.31191936,2473.9,2473.8,1.31191936]
[1729998683807,1.31191936,2473.9,2473.8,1.71661936]
[1729998685108,1.31191936,2474.1,2473.9,0.40468]
[1729998685313,1.31191936,2474.1,2474.0,2.59887936]
[1729998686614,1.31191936,2474.1,2474.0,1.28696]
[1729998688813,1.31191936,2474.2,2474.1,0.40465]
[1729998689016,1.31191936,2474.2,2474.1,1.71656936]
[1729998689213,1.31191936,2474.2,2474.1,5.75816936]
[1729998689614,1.31191936,2474.3,2474.1,5.35351936]
[1729998689816,1.31191936,2474.3,2474.2,0.40463]
[1729998690025,1.31191936,2474.3,2474.2,0.83463]
[1729998690426,1.31191936,2474.3,2474.2,1.74191936]
[1729998690726,1.72851936,2474.4,2474.3,0.40461]
[1729998690915,3.2078,2475.1,2474.7,0.40455]
[1729998691115,6.994,2476.2,2475.0,1.71640936]
[1729998691116,1.31191936,2475.2,2475.0,1.71640936]
[1729998691424,0.4166,2475.1,2475.0,1.71641936]
[1729998693017,3.62,2475.4,2475.0,1.31191936]
[1729998693326,5.36101936,2475.4,2475.3,0.40445]
[1729998693523,4.0491,2475.4,2475.3,0.40445]
[1729998693722,3.6369,2475.4,2475.3,1.71636936]
[1729998694219,3.2078,2475.4,2475.3,1.71636936]
[1729998695026,4.51971936,2475.4,2475.3,1.71636936]
[1729998695826,1.31191936,2475.4,2475.3,1.71636936]
[1729998704230,1.31191936,2475.4,2475.0,3.2078]
[1729998704427,1.31191936,2475.1,2475.0,3.6123]
[1729998706327,1.31191936,2475.1,2475.0,4.92421936]
[1729998707234,1.31191936,2475.1,2475.0,1.71641936]
[1729998707534,1.31191936,2475.1,2475.0,4.92421936]
[1729998707736,1.31191936,2475.1,2475.0,1.71641936]
[1729998707929,1.31191936,2475.1,2475.0,4.92421936]
[1729998708129,1.31191936,2475.1,2475.0,1.71641936]
[1729998708327,1.31191936,2475.1,2475.0,4.92421936]
[1729998709130,2.17581936,2475.2,2475.1,0.40448]
[1729998709532,1.75511936,2475.2,2475.1,0.40448]
[1729998709836,1.74381936,2475.3,2475.2,0.40447]
[1729998710140,0.4319,2475.3,2475.2,1.71638936]
[1729998711539,0.4319,2475.3,2475.2,0.40447]
[1729998717142,0.4319,2475.3,2475.2,0.83107]
[1729998717337,0.4319,2475.3,2475.2,2.99388936]
[1729998721835,1.74381936,2475.3,2475.2,0.40447]
[1729998723747,0.4319,2475.3,2475.2,0.40447]
[1729998723944,1.74381936,2475.3,2475.2,0.40447]
[1729998728550,1.74381936,2475.3,2475.0,3.2078]
[1729998728858,2.14826936,2475.3,2475.1,0.40448]
[1729998729555,1.74381936,2475.3,2475.1,0.40448]
[1729998729755,2.14826936,2475.3,2475.1,0.40448]
[1729998730454,2.14827936,2475.3,2475.0,4.92420936]
[1729998730848,2.14827936,2475.3,2475.0,4.51971936]
[1729998731053,2.14827936,2475.3,2475.1,0.40448]
[1729998731054,1.74381936,2475.3,2475.1,0.40448]
[1729998731656,1.74381936,2475.3,2475.0,1.31191936]
[1729998731859,1.74381936,2475.3,2475.2,0.40447]
[1729998732349,5.78381936,2475.3,2475.2,0.40447]
[1729998732549,4.4719,2475.3,2475.2,0.40447]
[1729998732946,4.4719,2475.3,2475.2,1.26897]
[1729998734757,0.4319,2475.3,2475.2,1.26897]
[1729998735053,0.4319,2475.3,2475.2,2.58088936]
[1729998735353,0.826,2475.6,2475.5,0.40442]
[1729998735858,4.94051936,2475.7,2475.6,0.4044]
[1729998736557,4.94051936,2475.7,2475.6,0.8372]
[1729998736558,3.6286,2475.7,2475.6,0.8372]
[1729998736755,4.94051936,2475.7,2475.6,0.8372]
[1729998738357,1.73271936,2475.7,2475.6,0.8372]
[1729998739857,2.13710936,2475.7,2475.6,0.8372]
[1729998740057,0.4044,2475.6,2475.4,0.40443]
[1729998740263,1.75001936,2475.5,2475.4,0.40443]
[1729998742461,1.75001936,2475.5,2475.3,1.31191936]
[1729998742657,0.4085,2475.4,2475.3,1.71635936]
[1729998748970,4.51971936,2475.7,2475.3,1.31191936]
[1729998749166,4.51971936,2475.7,2475.2,0.8851]
[1729998749167,0.822,2475.6,2475.5,0.40441]
[1729998749371,4.8612,2475.6,2475.5,0.84571]
[1729998749666,4.0298,2475.7,2475.6,0.4044]
[1729998749865,4.0298,2475.7,2475.6,0.811]
[1729998750669,0.822,2475.7,2475.6,0.811]
[1729998751269,1.22639,2475.7,2475.6,2.12291936]
[1729998752270,0.822,2475.7,2475.6,2.12291936]
[1729998752776,1.22639,2475.7,2475.6,2.12291936]
[1729998753874,1.22639,2475.7,2475.6,1.71851936]
[1729998754971,2.53830936,2475.7,2475.6,1.71851936]
[1729998755275,0.40444,2475.4,2475.3,0.40445]
[1729998755661,0.40444,2475.4,2475.2,2.16111936]
[1729998755866,0.40444,2475.4,2475.2,0.8492]
[1729998755867,0.85145,2475.3,2475.2,0.8492]
[1729998756069,0.447,2475.3,2475.2,2.56558936]
[1729998759167,0.447,2475.3,2475.2,2.16111936]
[1729998759482,0.85145,2475.3,2475.2,2.16111936]
[1729998759668,0.85145,2475.3,2475.2,2.56558936]
[1729998759879,0.447,2475.3,2475.2,2.56558936]
[1729998760682,0.447,2475.3,2475.2,2.12758936]
[1729998765289,0.447,2475.3,2475.2,2.54618936]
[1729998767485,0.447,2475.3,2475.2,2.12758936]
[1729998779392,0.822,2475.4,2475.3,0.40445]
[1729998779592,0.822,2475.4,2475.3,2.12996936]
[1729998780696,4.862,2475.4,2475.3,2.12996936]
[1729998783198,4.862,2475.4,2475.3,0.81805]
[1729998784286,5.26643,2475.4,2475.3,0.81805]
[1729998785398,4.862,2475.4,2475.3,0.81805]
[1729998785700,5.26643,2475.4,2475.3,0.81805]
[1729998785900,4.862,2475.4,2475.3,0.81805]
[1729998786293,0.822,2475.4,2475.3,0.81805]
[1729998787700,1.22643,2475.4,2475.3,0.81805]
[1729998788604,0.822,2475.4,2475.3,0.81805]
[1729998788805,1.22643,2475.4,2475.3,0.81805]
[1729998789600,0.822,2475.4,2475.3,0.81805]
[1729998789900,1.22643,2475.4,2475.3,0.81805]
[1729998790204,0.822,2475.4,2475.3,0.81805]
[1729998790905,1.22643,2475.4,2475.3,0.81805]
[1729998791999,0.822,2475.4,2475.2,0.4112]
[1729998792194,0.822,2475.4,2474.7,1.01135]
[1729998792195,5.35191936,2475.3,2474.8,0.4149]
[1729998792396,1.31191936,2475.0,2474.9,0.40451]
[1729998792608,1.71640936,2475.1,2474.9,0.40451]
[1729998793198,1.71640936,2475.1,2474.9,1.71642936]
[1729998796606,0.4045,2475.0,2474.9,1.71642936]
[1729998796800,0.40452,2474.9,2474.8,2.55741936]
[1729998797004,0.417,2474.9,2474.8,2.96194936]
[1729998798809,1.239,2474.9,2474.8,2.96194936]
[1729998800111,1.64352,2474.9,2474.8,2.55741936]
[1729998800613,1.64352,2474.9,2474.8,2.96194936]
[1729998803111,1.239,2474.9,2474.8,2.96194936]
[1729998804110,1.239,2474.9,2474.8,2.55741936]
[1729998804308,1.239,2474.9,2474.8,0.4144]
[1729998804309,1.64352,2474.9,2474.8,0.4144]
[1729998804613,1.64352,2474.9,2474.6,3.2078]
[1729998804614,2.55091936,2474.9,2474.6,3.2078]
[1729998804812,1.31191936,2474.8,2474.6,3.2078]
[1729998805002,1.71644936,2474.8,2474.6,4.44746]
[1729998805201,1.71644936,2474.8,2474.6,4.89496]
[1729998806512,1.71644936,2474.8,2474.6,6.20687936]
[1729998806811,1.71644936,2474.8,2474.6,2.99907936]
[1729998807613,2.55091936,2474.9,2474.7,0.40455]
[1729998808505,2.95544936,2474.9,2474.7,1.71646936]
[1729998810409,2.55091936,2474.9,2474.7,1.71646936]
[1729998810611,0.40453,2474.8,2474.7,1.31191936]
[1729998811318,0.40453,2474.8,2474.7,1.71646936]
[1729998811513,0.40453,2474.8,2474.7,0.40455]
[1729998814111,2.95543936,2474.9,2474.7,0.40455]
[1729998814719,0.40453,2474.8,2474.7,0.40455]
[1729998816315,0.417,2474.9,2474.8,0.40453]
[1729998816520,0.822,2474.9,2474.8,1.71644936]
[1729998816726,4.51971936,2475.0,2474.9,0.40452]
[1729998816919,5.34171936,2475.0,2474.9,0.40452]
[1729998817114,5.34171936,2475.0,2474.9,0.82522]
[1729998819615,2.13391936,2475.0,2474.9,0.82522]
[1729998822525,2.53841936,2475.0,2474.9,0.82522]
[1729998822824,2.53841936,2475.0,2474.9,0.4207]
[1729998824616,2.13391936,2475.0,2474.9,0.82522]
[1729998826226,2.53841936,2475.0,2474.9,0.82522]
[1729998827220,2.53841936,2475.0,2474.9,0.4207]
[1729998827426,2.53841936,2475.0,2474.9,1.3025]
[1729998827623,2.13391936,2475.0,2474.9,1.70702]
[1729998828029,2.13391936,2475.0,2474.9,1.3025]
[1729998828331,2.53841936,2475.0,2474.9,1.3025]
[1729998829223,2.53841936,2475.0,2474.9,1.70702]
[1729998829425,2.13391936,2475.0,2474.9,1.70702]
[1729998830130,2.53841936,2475.0,2474.9,1.3025]
[1729998830929,2.13391936,2475.0,2474.9,1.3025]
[1729998831121,2.13391936,2475.0,2474.9,1.70702]
[1729998831329,2.53841936,2475.0,2474.9,1.70702]
[1729998831529,2.53841936,2475.0,2474.9,1.3025]
[1729998832929,2.13391936,2475.0,2474.9,1.3025]
[1729998833130,2.53841936,2475.0,2474.9,1.3025]
[1729998838630,1.2265,2475.0,2474.9,1.3025]
[1729998841827,0.40456,2474.7,2474.5,3.61238]
[1729998842028,1.71647936,2474.7,2474.6,0.4485]
[1729998842532,1.71646936,2474.7,2474.6,0.4485]
[1729998842939,1.31191936,2474.7,2474.6,0.85307]
[1729998843445,0.40454,2474.8,2474.6,0.85307]
[1729998844032,0.40455,2474.7,2474.6,0.4485]
[1729998844631,4.51971936,2474.9,2474.6,0.4485]
[1729998844830,0.40454,2474.8,2474.6,0.85307]
[1729998850642,3.2078,2474.9,2474.8,0.40453]
[1729998850834,1.76061936,2475.1,2474.8,1.31191936]
[1729998851133,0.822,2475.0,2474.9,0.40451]
[1729998851531,0.822,2475.0,2474.9,0.83721]
[1729998851732,2.53841936,2475.0,2474.9,0.4327]
[1729998851936,1.71641936,2475.0,2474.9,0.4327]
[1729998852247,0.40452,2474.9,2474.7,0.40455]
[1729998852440,1.31191936,2474.8,2474.7,0.40455]
[1729998853736,1.76011936,2474.8,2474.6,0.4485]
[1729998853935,2.16465936,2474.8,2474.6,0.85306]
[1729998855043,1.71646936,2474.7,2474.6,0.4485]
[1729998855638,2.15076936,2474.7,2474.6,0.4485]
[1729998856241,1.74621936,2474.7,2474.6,0.4485]
[1729998857042,1.74621936,2474.7,2474.6,0.85307]
[1729998859443,1.31191936,2474.7,2474.6,0.85307]
[1729998859747,1.76011936,2474.8,2474.7,0.40455]
[1729998860145,2.58211936,2474.8,2474.6,0.4485]
[1729998860346,2.98664936,2474.8,2474.6,0.85305]
[1729998861645,2.58211936,2474.8,2474.6,0.85305]
[1729998863547,1.31191936,2474.7,2474.6,0.85305]
[1729998867350,1.31191936,2474.7,2474.6,0.40455]
[1729998868444,1.31191936,2474.7,2474.6,0.81835]
[1729998878355,5.35271936,2474.7,2474.6,0.4138]
[1729998878657,5.35271936,2474.7,2474.1,1.46576108]
[1729998878658,0.4046,2474.4,2474.1,1.46576108]
[1729998878855,0.4046,2474.4,2474.1,0.40464]
[1729998878856,1.31191936,2474.2,2474.1,0.40464]
[1729998880457,1.31191936,2474.2,2474.0,1.3106]
[1729998880658,1.31191936,2474.1,2474.0,1.71525]
[1729998882255,1.31191936,2474.1,2474.0,1.71526]
[1729998890772,1.31191936,2474.1,2474.0,3.02717936]
[1729998890968,2.54591936,2474.3,2474.2,0.40463]
[1729998891972,5.75371936,2474.3,2474.2,0.40463]
[1729998892172,2.54591936,2474.3,2474.2,0.40463]
[1729998896778,2.54591936,2474.3,2474.1,0.40464]
[1729998896980,1.31191936,2474.2,2474.1,0.40464]
[1729998900377,0.4448,2474.6,2474.1,0.40464]
[1729998900378,0.40456,2474.7,2474.4,0.4046]
[1729998900578,0.822,2474.5,2474.4,1.71651936]
[1729998900783,1.22655,2474.8,2474.6,0.40457]
[1729998900983,0.822,2474.8,2474.4,1.31191936]
[1729998901190,1.31191936,2474.5,2474.4,0.40459]
[1729998903076,1.31191936,2474.5,2474.4,4.44619]
[1729998903584,1.31191936,2474.6,2474.4,5.35351936]
[1729998903778,1.31191936,2474.6,2474.5,0.40458]
[1729998904985,0.822,2474.7,2474.6,0.40457]
[1729998904986,2.13391936,2474.7,2474.6,0.40457]
[1729998905177,2.13391936,2474.7,2474.6,4.44537]
[1729998905485,1.31191936,2474.7,2474.6,4.44537]
[1729998905681,3.2078,2474.9,2474.6,5.35271936]
[1729998905887,3.2078,2474.9,2474.5,1.01146]
[1729998905888,1.31191936,2474.9,2474.8,0.40453]
[1729998906390,1.31191936,2474.9,2474.8,4.44533]
[1729998907687,1.22647,2475.2,2475.0,0.40449]
[1729998907884,1.31191936,2475.1,2475.0,0.40449]
[1729998908486,1.31191936,2475.1,2475.0,4.4445]
[1729998909679,1.31191936,2475.3,2475.0,5.35191936]
[1729998909989,3.2078,2475.5,2475.3,0.40445]
[1729998909990,2.13391936,2475.4,2475.3,0.40445]
[1729998910694,0.821,2475.6,2475.3,1.31191936]
[1729998910893,1.31191936,2475.4,2475.3,1.31191936]
[1729998911089,1.31191936,2475.4,2475.3,0.40444]
[1729998912382,1.31191936,2475.4,2475.1,0.82988]
[1729998912383,5.35191936,2475.4,2475.1,0.82988]
[1729998912590,1.31191936,2475.2,2475.1,0.82988]
[1729998913489,1.31191936,2475.2,2475.1,0.4254]
[1729998913993,1.75571936,2475.2,2475.1,0.4254]
[1729998914380,1.75571936,2475.2,2475.1,0.82988]
[1729998915190,1.31191936,2475.2,2475.1,0.82988]
[1729998919395,1.31191936,2475.2,2475.1,0.40448]
[1729998922593,3.2078,2475.4,2475.3,0.40445]
[1729998923401,3.2078,2475.4,2475.3,0.85335]
[1729998923595,2.13291936,2475.5,2475.4,0.40443]
[1729998925293,2.13291936,2475.5,2475.2,0.8573]
[1729998925494,1.31191936,2475.3,2475.2,0.82315]
[1729998926003,1.22543,2475.5,2475.2,0.82315]
[1729998926200,0.821,2475.5,2475.2,0.4187]
[1729998926400,4.0288,2475.5,2475.4,0.40443]
[1729998926596,5.34071936,2475.5,2475.4,0.40443]
[1729998926801,2.13291936,2475.5,2475.4,0.40443]
[1729998926998,5.74513936,2475.5,2475.3,0.83374]
[1729998927202,1.31191936,2475.4,2475.3,0.83374]
[1729998930305,1.75901936,2475.4,2475.3,0.83374]
[1729998930805,1.75901936,2475.4,2475.2,0.82316]
[1729998931003,1.31191936,2475.3,2475.2,0.40446]
[1729998931198,1.31191936,2475.3,2475.1,0.40448]
[1729998931397,1.76021936,2475.2,2475.1,0.40448]
[1729998936406,2.16468936,2475.2,2475.0,0.40449]
[1729998936611,1.74921936,2475.1,2475.0,0.40449]
[1729998937910,1.74921936,2475.1,2474.9,0.40451]
[1729998938112,1.31191936,2475.0,2474.9,0.40451]
[1729998939308,0.4373,2475.1,2474.9,1.31191936]
[1729998939611,0.4373,2475.1,2475.0,1.71641936]
[1729998940404,1.31191936,2475.3,2475.0,1.31191936]
[1729998940607,3.61221,2475.6,2475.2,1.31191936]
[1729998940805,1.31191936,2475.4,2475.3,1.27065]
[1729998941017,1.31191936,2475.4,2475.3,1.71335]
[1729998941407,0.4071,2475.5,2475.4,0.40443]
[1729998941408,2.54001936,2475.5,2475.4,0.40443]
[1729998941807,1.71901936,2475.5,2475.4,0.40443]
[1729998942013,2.54001936,2475.5,2475.4,0.40443]
[1729998942406,0.821,2475.5,2475.4,0.40443]
[1729998943618,2.13291936,2475.5,2475.4,0.40443]
[1729998944617,0.821,2475.5,2475.4,1.71634936]
[1729998946416,3.6454,2475.8,2475.7,0.40439]
[1729998946611,3.6454,2475.8,2475.7,1.71630936]
[1729998946813,4.95731936,2475.8,2475.7,0.40439]
[1729998947208,4.95731936,2475.8,2475.5,0.40441]
[1729998947416,1.31191936,2475.7,2475.6,0.4044]
[1729998947616,1.71630936,2475.7,2475.5,0.40441]
[1729998948617,1.71630936,2475.7,2475.4,1.31191936]
[1729998948618,1.31191936,2475.7,2475.4,1.31191936]
[1729998948821,1.31191936,2475.6,2475.5,0.40441]
[1729998951614,1.31191936,2475.7,2475.6,0.4044]
[1729998951811,1.31191936,2475.7,2475.6,0.826]
[1729998960126,4.95731936,2475.8,2475.6,0.4216]
[1729998960320,3.6454,2475.8,2475.7,2.12290936]
[1729998960920,3.2078,2475.8,2475.7,6.16210936]
[1729998961222,1.2332,2476.0,2475.7,5.75771936]
[1729998961422,1.2332,2476.0,2475.9,1.71626936]
[1729998961623,2.54511936,2476.0,2475.9,0.40435]
[1729998962821,1.72411936,2476.0,2475.9,0.40435]
[1729998963218,4.0288,2476.1,2475.9,1.31191936]
[1729998963219,3.2078,2476.1,2475.9,1.31191936]
[1729998963422,3.2078,2476.1,2476.0,2.16185936]
[1729998963933,4.51971936,2476.1,2476.0,1.27414]
[1729998967935,4.51971936,2476.1,2476.0,0.84994]
[1729998968134,4.51971936,2476.1,2476.0,0.40434]
[1729998969935,1.31191936,2476.1,2476.0,0.40434]
[1729998971129,1.31191936,2476.1,2475.9,1.31191936]
[1729998971130,2.13291936,2476.2,2476.1,0.40432]
[1729998974036,2.13291936,2476.2,2475.8,2.20071936]
[1729998974232,2.13291936,2476.2,2475.9,0.40434]
[1729998974233,1.31191936,2476.0,2475.9,0.40434]
[1729998974630,1.73891936,2476.0,2475.9,0.40434]
[1729998975335,0.427,2476.0,2475.9,1.71625936]
[1729998975844,0.427,2476.0,2475.9,0.40434]
[1729998976139,2.14325936,2476.0,2475.8,0.40436]
[1729998976340,1.31191936,2475.9,2475.8,0.40436]
[1729998976546,2.58995936,2476.0,2475.8,0.40436]
[1729998976845,1.71627936,2475.9,2475.8,0.40437]
[1729998977250,1.31191936,2475.9,2475.8,0.40437]
[1729998978632,1.31191936,2475.9,2475.7,1.71851936]
[1729998979049,1.31191936,2475.9,2475.8,0.40437]
[1729998982049,0.8737,2476.0,2475.9,0.40435]
[1729998982343,3.6397,2476.1,2475.9,1.31191936]
[1729998982344,4.0358,2476.1,2475.9,1.31191936]
[1729998982546,4.0358,2476.1,2476.0,0.40434]
[1729998984049,4.0358,2476.1,2476.0,1.71625936]
[1729998984249,3.2078,2476.1,2476.0,1.71625936]
[1729998985952,0.4347,2476.2,2476.1,0.40432]
[1729998986158,0.4347,2476.2,2476.1,2.16113936]
[1729998986454,5.34771936,2476.4,2476.3,0.40429]
[1729998986653,5.75561936,2476.4,2476.3,0.40429]
[1729998987661,5.75561936,2476.4,2476.3,0.81719]
[1729998988854,4.92761936,2476.4,2476.3,2.12910936]
[1729998990159,3.6157,2476.4,2476.3,2.12910936]
[1729998991358,3.2078,2476.4,2476.3,2.12910936]
[1729998991965,1.73901936,2476.6,2476.3,1.72481936]
[1729998991966,0.4271,2476.6,2476.3,1.72481936]
[1729998992155,0.4271,2476.6,2476.5,1.71617936]
[1729998992765,3.2078,2476.7,2476.6,0.40424]
[1729998992960,3.2078,2476.7,2476.6,2.14325936]
[1729998994264,3.2078,2476.7,2476.5,0.40425]
[1729998994265,4.92394936,2476.7,2476.5,0.40425]
[1729998994465,1.31191936,2476.7,2476.6,1.71615936]
[1729998994760,0.4271,2476.8,2476.7,0.40422]
[1729998994964,0.49008566,2476.8,2476.7,0.83332]
[1729998995959,0.49008566,2476.8,2476.7,2.14523936]
[1729998996161,0.4271,2476.8,2476.7,2.14523936]
[1729998998264,0.4407,2477.2,2476.9,0.40419]
[1729998998265,0.84485,2477.2,2476.9,0.40419]
[1729998998559,0.84485,2477.2,2477.0,0.8575]
[1729998998560,1.81660159,2477.1,2477.0,0.8575]
[1729998998761,2.22076159,2477.1,2477.0,0.8575]
[1729998998966,1.81660159,2477.1,2477.0,0.8575]
[1729998999973,1.75361936,2477.1,2477.0,0.8575]
[1729999001970,2.15777936,2477.1,2477.0,0.8575]
[1729999002859,2.15777936,2477.1,2477.0,0.4144]
[1729999003257,1.75361936,2477.1,2477.0,0.4144]
[1729999005358,1.75361936,2477.1,2477.0,0.81857]
[1729999005359,0.4417,2477.1,2477.0,0.81857]
[1729999005565,0.4417,2477.1,2477.0,2.13048936]
[1729999006064,0.4417,2477.1,2477.0,1.72631936]
[1729999006265,0.84586,2477.1,2477.0,0.4144]
[1729999006767,0.4417,2477.1,2477.0,0.4144]
[1729999006968,0.84586,2477.1,2477.0,0.4144]
[1729999007369,0.4417,2477.1,2477.0,0.4144]
[1729999007769,0.4417,2477.1,2477.0,0.81857]
[1729999008167,0.4417,2477.1,2477.0,2.13048936]
[1729999008569,3.61192,2477.3,2477.1,0.40415]
[1729999008876,0.4353,2477.2,2477.1,2.15106936]
[1729999010571,0.4353,2477.2,2477.1,1.74691936]
[1729999011672,0.83944,2477.2,2477.1,1.31191936]
[1729999011863,1.74721936,2477.2,2477.0,2.13047936]
[1729999012474,2.15136936,2477.2,2477.0,2.13047936]
[1729999013174,1.74721936,2477.2,2477.0,1.31191936]
[1729999013366,1.74721936,2477.2,2476.8,0.4247]
[1729999013367,0.40419,2477.0,2476.9,1.31191936]
[1729999013568,2.16258936,2477.1,2477.0,0.40417]
[1729999013772,0.85067,2477.1,2477.0,1.31191936]
[1729999015677,0.4465,2477.1,2476.9,1.73641936]
[1729999015866,0.85067,2477.1,2476.9,2.14059936]
[1729999017474,0.85067,2477.1,2476.9,0.82868]
[1729999017675,0.85067,2477.1,2476.9,2.14059936]
[1729999018471,2.59297936,2477.2,2477.0,1.71608936]
[1729999018673,0.4353,2477.2,2477.1,1.31191936]
[1729999018877,0.4353,2477.2,2477.1,1.71607936]
[1729999021774,1.31191936,2477.3,2477.2,0.40414]
[1729999022082,1.31191936,2477.3,2477.2,0.4222]
[1729999022083,1.81389154,2477.3,2477.2,0.4222]
[1729999022282,1.81389154,2477.3,2477.2,0.8478]
[1729999022880,0.50197218,2477.3,2477.2,1.25194]
[1729999023277,0.439,2477.3,2477.2,1.25194]
[1729999023477,0.50197092,2477.3,2477.2,1.25194]
[1729999023683,0.50197092,2477.3,2477.2,0.8478]
[1729999023890,0.50197092,2477.3,2477.2,2.56385936]
[1729999024576,0.50197035,2477.3,2477.2,2.56385936]
[1729999025178,0.06297035,2477.3,2477.2,2.56385936]
[1729999025380,1.2695,2477.5,2477.3,0.40412]
[1729999025686,1.2695,2477.5,2477.4,0.4487]
[1729999025884,1.3324684,2477.5,2477.4,0.4487]
[1729999026077,1.7365584,2477.5,2477.4,0.4487]
[1729999026585,1.3324684,2477.5,2477.4,0.4487]
[1729999026983,1.7365584,2477.5,2477.4,0.4487]
[1729999027186,1.73655835,2477.5,2477.4,0.4487]
[1729999028377,1.33246835,2477.5,2477.4,0.4487]
[1729999029175,1.2695,2477.5,2477.4,2.16472936]
[1729999029980,0.4355,2477.5,2477.4,2.16472936]
[1729999030181,0.4355,2477.5,2477.4,1.76061936]
[1729999030489,0.4355,2477.5,2477.4,2.16472936]
[1729999033784,0.4355,2477.5,2477.4,1.76061936]
[1729999037177,0.4355,2477.5,2477.4,2.16472936]
[1729999037582,0.4355,2477.5,2477.4,1.76061936]
[1729999038496,0.40408,2477.6,2477.4,2.16472936]
[1729999038797,0.81428,2477.6,2477.4,1.76061936]
[1729999039090,0.81428,2477.6,2477.5,0.4503]
[1729999042387,0.4102,2477.6,2477.5,0.4503]
[1729999042689,0.81428,2477.6,2477.5,0.4503]
[1729999044494,0.87724461,2477.6,2477.5,0.4503]
[1729999045392,0.47316461,2477.6,2477.5,0.4503]
[1729999045791,0.87724461,2477.6,2477.5,0.4503]
[1729999046992,0.87724459,2477.6,2477.5,0.4503]
[1729999047691,0.40409,2477.5,2477.4,1.76061936]
[1729999047896,1.778974,2477.5,2477.4,0.4487]
[1729999048093,1.778974,2477.5,2477.4,1.76061936]
[1729999048292,1.778974,2477.5,2477.4,1.31191936]
[1729999048293,2.188974,2477.5,2477.4,1.31191936]
[1729999050994,0.87705464,2477.5,2477.4,1.31191936]
[1729999052494,0.81409,2477.5,2477.4,1.31191936]
[1729999053902,0.41,2477.5,2477.4,1.31191936]
[1729999054200,0.81429,2477.6,2477.4,1.31191936]
[1729999054401,0.81429,2477.6,2477.4,1.71602936]
[1729999054592,0.4102,2477.6,2477.4,1.71602936]
[1729999054797,0.4102,2477.6,2477.5,1.31191936]
[1729999054994,0.4102,2477.6,2477.5,0.76002998]
[1729999055196,0.81428,2477.6,2477.5,0.76002998]